[Event "Szansa Chess Open 2022"]
[Site "Warsaw"]
[Date "2022.09.17"]
[Round "1.14"]
[White "Grzelak, Piotr"]
[Black "Lapaj, Mateusz"]
[Result "1/2-1/2"]
[ECO "A05"]
[WhiteElo "1580"]
[BlackElo "2216"]
[Annotator "TA"]
[PlyCount "92"]
[EventDate "2022.09.17"]
[EventCountry "POL"]
[SourceTitle "playchess.com"]
[Source "ChessBase"]
[SourceQuality "1"]
[TimeControl "900+10"]

{[%evp 14,92,35,30,36,0,37,0,0,0,1,0,10,10,18,0,14,0,0,0,27,27,37,34,37,29,36,31,35,0,2,-41,33,-29,-51,-51,97,-17,0,0,0,-62,-42,-45,0,-46,61,-44,0,-45,-31,-27,62,69,100,99,99,86,1794,0,89,0,229,214,215,177,177,177,293,261,239,153,604,587,615,574,580,558,824,793,1045]} 1. Nf3 {[%emt 0:00:02]} Nf6 {[%emt 0:00:05]} 2. c4 {[%emt 0:00:01]} g6 {[%emt 0:00:03]} 3. b3 {[%emt 0:00:01]} Bg7 {[%emt 0:00:04]} 4. Bb2 {[%emt 0:00:01]} O-O {[%emt 0:00:02]} 5. g3 {[%emt 0:00:02]} b6 {[%emt 0:00:06]} 6. Bg2 {[%emt 0:00:01]} Bb7 {[%emt 0:00:01]} 7. O-O {[%emt 0:00:03]} d6 {[%emt 0:01:09]} 8. d4 {[%emt 0:00:11]} Nbd7 {[%emt 0:00:04] A15: English Opening: 1...Nf6.} 9. d5 {[%emt 0:00:11]} e5 {[%emt 0:03:05][%cal Ob6b5]} 10. dxe6 {[%emt 0:00:32]} fxe6 {[%emt 0:00:01] The position is equal.} 11. Nc3 {[%emt 0:00:53]} Qe7 {[%emt 0:00:52]} 12. Qc2 {[%emt 0:01:10] [#]} a6 $146 {[%emt 0:00:42]} ({Predecessor:} 12... a5 13. e4 Nxe4 14. Nxe4 Bxb2 15. Rae1 Bg7 16. h4 Rae8 17. Neg5 Qf6 18. Re3 Nc5 {0-1 (102) Galperin,P (2347)-Tsaruk,M (2115) Minsk 2018}) 13. Rad1 {[%emt 0:00:34]} Rae8 {[%emt 0:00:38]} 14. h3 {[%emt 0:01:12]} Kh8 {[%emt 0:00:42]} 15. Nd4 {[%emt 0:00:14]} (15. h4 {seems wilder.} Kg8 16. Ng5 Bxg2 17. Kxg2 Nh5 18. f3) 15... Bxg2 {[%emt 0:00:14]} 16. Kxg2 {[%emt 0:00:02]} e5 {[%emt 0:01:12]} 17. Nc6 {[%emt 0:00:16]} Qf7 {[%emt 0:00:41]} 18. Nb4 {[%emt 0:01:09]} Nc5 {[%emt 0:00:47][%cal Bd7c5,Bc5e6,Be6d4][%mdl 32]} 19. Nbd5 {[%emt 0:00:03]} Ne6 {[%emt 0:00:58]} 20. Nxf6 {[%emt 0:00:02]} Qxf6 {[%emt 0:00:29]} 21. Nd5 {[%emt 0:00:10]} Qf7 {[%emt 0:00:02]} 22. b4 {[%emt 0:02:53]} Qd7 {[%emt 0:01:34]} (22... b5 $15) 23. Bc1 {[%emt 0:05:51]} (23. a4 $14) 23... Nd4 $11 {[%emt 0:00:26]} 24. Qe4 {[%emt 0:00:27][%cal Oa2a4]} Rf7 {[%emt 0:01:03] [#]} (24... b5 $15 {keeps the upper hand.} 25. c5 dxc5 26. bxc5 Qc6) 25. Be3 {[%emt 0:00:57]} (25. Nxc7 $1 $16 Rc8 (25... Qxc7 26. Rxd4) 26. Nd5) 25... Ref8 {[%emt 0:00:39]} (25... Nxe2 $2 26. Rde1 $18) 26. Bxd4 {[%emt 0:00:27]} exd4 {[%emt 0:00:02]} 27. e3 {[%emt 0:01:15]} (27. Rc1 $1 $11) 27... dxe3 {[%emt 0:01:19]} 28. Nxe3 {[%emt 0:00:12][%cal Oc4c5]} Re8 {[%emt 0:00:04]} 29. Qg4 {[%emt 0:00:07]} (29. Qd3 $11 {is more appropriate.}) 29... Ref8 {[%emt 0:00:00]} (29... Qa4 $15) 30. Qe4 {[%emt 0:00:13]} (30. Qxd7 $14 Rxd7 31. c5) 30... Re8 {[%emt 0:00:20]} 31. Qg4 {[%emt 0:00:07]} Qc6+ {[%emt 0:00:38]} 32. Nd5 {[%emt 0:00:07]} Rfe7 {[%emt 0:01:05]} (32... b5 $11 33. Rc1 Re5) 33. b5 $1 $14 {[%emt 0:00:39]} axb5 {[%emt 0:00:06]} 34. cxb5 {[%emt 0:00:01]} Qb7 {[%emt 0:00:00]} 35. Qc4 {[%emt 0:00:10]} Qc6 $2 {[%emt 0:00:20][%mdl 8192]} 36. Qg4 $2 {[%emt 0:00:10]} (36. Qxc6 $18 {is more deadly.} Re2 37. Nxc7) 36... Qb7 $1 $16 {[%emt 0:00:00]} 37. Qc4 {[%emt 0:00:10]} (37. Qa4 $16) 37... Rd7 $2 {[%emt 0:00:46]} (37... Qc6 $1 $11 {and Black stays safe.} 38. Qxc6 Re2 39. Qxc7 R2e4 40. Nxb6 R4e7 41. Qxd6 Ra7) 38. Rfe1 $18 {[%emt 0:00:10]} Rf8 {[%emt 0:00:33]} 39. a4 {[%emt 0:00:18]} Rdf7 {[%emt 0:00:03]} 40. Re2 {[%emt 0:00:15]} h5 (40... Rc8 {keeps fighting.} 41. h4 c6) 41. Qe4 Rf5 {[%emt 0:00:33]} 42. Kg1 {[%emt 0:00:18] Ne7 is the strong threat.} Qb8 $2 {[%emt 0:00:23]} (42... Re5 $16 43. Qd3 Rxe2 44. Qxe2 Kh7) 43. Ne7 {[%emt 0:00:03][%csl LRf5,LRg6] White is clearly winning.} Kh7 {[%emt 0:00:15]} 44. Nxf5 {[%emt 0:00:02]} Rxf5 {[%emt 0:00:00]} 45. Rd5 {[%emt 0:00:08]} Rxd5 {[%emt 0:00:12]} 46. Qxd5 {[%emt 0:00:02]} Qa7 {[%emt 0:00:00][%mdl 32768] Weighted Error Value: White=0.38/Black=0.54. An unexpected result.} 1/2-1/2

[Event "Szansa Chess Open 2022"]
[Site "Warsaw"]
[Date "2022.09.17"]
[Round "1.15"]
[White "Zochowski, Kacper"]
[Black "Stepinski, Piotr"]
[Result "1-0"]
[ECO "B22"]
[WhiteElo "2257"]
[BlackElo "1663"]
[Annotator "TA"]
[PlyCount "116"]
[EventDate "2022.09.17"]
[EventCountry "POL"]
[SourceTitle "playchess.com"]
[Source "ChessBase"]
[SourceQuality "1"]
[TimeControl "900+10"]

{[%evp 10,116,5,0,-11,-10,0,7,41,35,45,36,58,21,63,56,68,9,12,19,18,-13,-24,-18,21,21,23,-12,21,25,43,20,124,124,124,70,71,73,106,69,103,79,119,119,118,118,125,133,142,129,125,99,109,83,79,61,53,55,63,62,65,57,71,55,98,79,200,198,193,195,194,183,210,181,204,0,198,0,193,107,93,89,135,109,109,109,173,50,64,18,211,0,154,0,63,44,72,72,72,72,72,71,94,71,72,56,69,106,121]} 1. e4 {[%emt 0:00:01]} c5 {[%emt 0:00:02]} 2. c3 {[%emt 0:00:12]} Nf6 {[%emt 0:00:16]} 3. e5 {[%emt 0:00:15]} Nd5 {[%emt 0:00:04]} 4. d4 {[%emt 0:00:16]} cxd4 {[%emt 0:01:03]} 5. Qxd4 {[%emt 0:00:12]} e6 {[%emt 0:01:26]} 6. Bd3 {[%emt 0:00:27]} Nc6 {[%emt 0:00:28] B22: Sicilian: 2 c3.} 7. Qe4 {[%emt 0:00:14]} f5 {[%emt 0:00:55] is currently scoring better than 7...d6.} 8. Qe2 {[%emt 0:01:09]} g6 {[%emt 0:03:04] The position is equal.} 9. Nf3 {[%emt 0:00:27]} Bg7 {[%emt 0:00:04]} 10. O-O {[%emt 0:00:59]} O-O {[%emt 0:00:36] [#]} 11. a4 $146 {[%emt 0:00:59]} ({Predecessor:} 11. Na3 a6 12. Nc4 b5 13. Nd6 Qc7 14. Nxc8 Raxc8 15. Re1 Na5 16. h4 h6 17. g3 {1-0 (45) Deviatkin,A (2512)-Emeliantsev,A (2361) Vladivostok 2014}) 11... d6 {[%emt 0:00:24]} 12. exd6 {[%emt 0:00:30]} Qxd6 {[%emt 0:00:02]} 13. Rd1 {[%emt 0:00:28]} (13. Na3 $14) 13... Nf4 $11 {[%emt 0:00:51]} 14. Bxf4 {[%emt 0:00:25]} Qxf4 {[%emt 0:00:02]} 15. g3 {[%emt 0:01:00]} Qc7 {[%emt 0:01:44]} 16. Bc4 {[%emt 0:00:30]} Re8 {[%emt 0:00:02]} 17. Na3 {[%emt 0:01:16][%cal Bb1a3,Ba3b5,Bb5d6][%mdl 32] And now Nb5 would win.} a6 {[%emt 0:00:01] Against Nb5} 18. Nd4 {[%emt 0:02:48]} Kh8 {[%emt 0:01:06]} 19. Nxc6 {[%emt 0:01:16]} ({Avoid the trap} 19. Nxe6 $2 Bxe6 20. Bxe6 Nd8 $19) 19... Qxc6 {[%emt 0:00:43] [#]} 20. Nb5 $1 {[%emt 0:01:29]} Rf8 {[%emt 0:01:27]} (20... axb5 $2 21. axb5 Qc7 22. Rxa8 $18) (20... Rb8 $11) (20... Bf8 21. Bb3) 21. Nd6 $16 {[%emt 0:00:22]} f4 {[%emt 0:01:02]} 22. Qe4 {[%emt 0:01:21]} ({Better is} 22. Rd3 $16) 22... Qxe4 $14 {[%emt 0:00:28]} 23. Nxe4 {[%emt 0:00:04]} e5 {[%emt 0:00:17]} 24. Nd6 {[%emt 0:00:38]} h6 {[%emt 0:00:03]} 25. Re1 {[%emt 0:00:19] White has more active pieces.} Bg4 {[%emt 0:00:33]} 26. Nf7+ {[%emt 0:00:05]} (26. Nxb7 fxg3 27. hxg3 Rab8) 26... Kh7 {[%emt 0:00:02]} 27. Nxe5 {[%emt 0:00:15]} Bh3 {[%emt 0:00:05]} 28. Bd3 {[%emt 0:00:35]} Bf5 {[%emt 0:00:12] [#] Hoping for ...Bxe5.} 29. Bxf5 {[%emt 0:00:01]} ({Don't play} 29. gxf4 Bxe5 30. Bxf5 Bxc3 31. bxc3 Rxf5 $16) 29... Rxf5 {[%emt 0:00:01]} 30. Nd3 {[%emt 0:00:04]} fxg3 {[%emt 0:00:04]} 31. hxg3 {[%emt 0:00:01]} Rd8 {[%emt 0:00:01]} 32. Rad1 {[%emt 0:00:04]} Rfd5 {[%emt 0:00:02]} 33. Re3 {[%emt 0:00:06]} b5 {[%emt 0:00:05]} 34. axb5 {[%emt 0:00:01]} axb5 {[%emt 0:00:01]} 35. Kf1 {[%emt 0:00:02]} h5 {[%emt 0:00:13]} 36. Ke2 {[%emt 0:00:02]} Rf8 {[%emt 0:00:08]} 37. Nf4 {[%emt 0:00:36]} Re5 {[%emt 0:00:24]} (37... Rxd1 $16 38. Kxd1 h4) 38. Rxe5 $18 {[%emt 0:00:11]} Bxe5 {[%emt 0:00:02][%mdl 4096] Endgame KRB-KRN} 39. Rd7+ {[%emt 0:00:09]} Kh6 {[%emt 0:00:04]} 40. Nd3 {[%emt 0:00:07]} Bg7 {[%emt 0:00:12]} 41. Rd5 {[%emt 0:00:04]} Rb8 {[%emt 0:00:01]} 42. Rd7 {[%emt 0:00:16]} Rf8 $1 {[%emt 0:00:19]} 43. Rd5 {[%emt 0:00:04]} Rb8 $1 {[%emt 0:00:01]} 44. Nf4 {[%emt 0:00:07]} (44. Rd6 $18) 44... b4 $16 {[%emt 0:00:04]} 45. Rd6 {[%emt 0:00:28]} bxc3 {[%emt 0:00:09]} (45... Kh7 $142) 46. Rxg6+ {[%emt 0:00:02]} Kh7 {[%emt 0:00:01]} 47. bxc3 {[%emt 0:00:01] Strongly threatening Rc6.} Bxc3 {[%emt 0:00:05]} (47... Be5 $16 {was worth a try.}) 48. Rc6 {[%emt 0:00:04]} (48. Rg5 $18) 48... Bd4 {[%emt 0:00:06]} 49. Rd6 {[%emt 0:00:25]} (49. Rc2 $14) 49... Bg7 $2 (49... Rb2+ $11 {and Black has nothing to worry.} 50. Kf3 Bxf2) 50. Rg6 Bc3 {[%emt 0:00:24]} 51. Rc6 {[%emt 0:00:05]} ({White should play} 51. Rg5 $16) 51... Bd4 $14 {[%emt 0:00:06]} 52. Nd3 {[%emt 0:00:17]} Re8+ {[%emt 0:00:03]} 53. Kf3 {[%emt 0:00:03]} Rf8+ {[%emt 0:00:01]} 54. Kg2 {[%emt 0:00:01]} Rf5 {[%emt 0:00:06]} 55. Rc4 {[%emt 0:00:11]} Bb6 {[%emt 0:00:15]} 56. Rh4 {[%emt 0:00:07]} Bd8 {[%emt 0:00:03]} 57. Rh3 {[%emt 0:00:13]} Ra5 {[%emt 0:01:26]} 58. Nf4 {[%emt 0:00:20]} Kh6 {[%emt 0:00:01] Black escapes into a draw.  Weighted Error Value: White=0.31/Black=0.24 (precise)} 1-0

[Event "Szansa Chess Open 2022"]
[Site "Warsaw"]
[Date "2022.09.17"]
[Round "1.20"]
[White "Glowacki, Mateusz"]
[Black "Smykalo, Severyn"]
[Result "0-1"]
[ECO "C02"]
[WhiteElo "1090"]
[BlackElo "1840"]
[Annotator "NA COMBH"]
[PlyCount "32"]
[EventDate "2022.09.17"]
[EventCountry "POL"]
[SourceTitle "playchess.com"]
[Source "ChessBase"]
[SourceQuality "1"]
[TimeControl "900+10"]

1. e4 {[%emt 0:00:03]} e6 {[%emt 0:00:01]} 2. d4 {[%emt 0:00:02]} d5 {[%emt 0:00:02]} 3. e5 {[%emt 0:00:02]} c5 {[%emt 0:00:02]} 4. c3 {[%emt 0:00:02]} Nc6 {[%emt 0:00:02]} 5. Nf3 {[%emt 0:00:03]} Qb6 {[%emt 0:00:06]} 6. Bd3 {[%emt 0:00:02]} Bd7 {[%emt 0:00:08]} 7. dxc5 {[%emt 0:00:02]} Bxc5 {[%emt 0:00:09]} 8. O-O {[%emt 0:00:03]} Nge7 {[%emt 0:00:29]} 9. b4 {[%emt 0:00:03]} Nxb4 {[%emt 0:00:15]} 10. cxb4 {[%emt 0:00:02]} Bxb4 {[%emt 0:00:06]} 11. Be3 {[%emt 0:00:23]} Qc7 {[%emt 0:00:35]} 12. Nbd2 {[%emt 0:00:03]} Nc6 {[%emt 0:00:39]} 13. Rb1 {[%emt 0:00:12]} Bxd2 {[%emt 0:00:42]} 14. Qxd2 {[%emt 0:00:20]} Nxe5 {[%emt 0:00:05]} 15. Nxe5 {[%emt 0:00:06]} Qxe5 {[%emt 0:00:05]} 16. Rxb7 {[%emt 0:00:02]} d4 {[%emt 0:01:13]} 0-1

[Event "Szansa Chess Open 2022"]
[Site "Warsaw"]
[Date "2022.09.17"]
[Round "1.21"]
[White "Chomczyk, Marek"]
[Black "Rybicki, Jan"]
[Result "0-1"]
[ECO "B02"]
[WhiteElo "2327"]
[BlackElo "1313"]
[Annotator "ChessBase"]
[PlyCount "128"]
[EventDate "2022.09.17"]
[EventCountry "POL"]
[SourceTitle "playchess.com"]
[Source "ChessBase"]
[SourceQuality "1"]
[TimeControl "900+10"]

1. e4 {[%emt 0:00:02]} Nf6 {[%emt 0:00:01]} 2. e5 {[%emt 0:00:06]} Nd5 {[%emt 0:00:01]} 3. c4 {[%emt 0:00:19]} Nb6 {[%emt 0:00:02]} 4. a4 {[%emt 0:00:01]} d6 {[%emt 0:00:21]} 5. exd6 {[%emt 0:00:16]} cxd6 {[%emt 0:00:12]} 6. d4 {[%emt 0:00:22]} g6 {[%emt 0:00:06]} 7. Nf3 {[%emt 0:00:15]} Bg7 {[%emt 0:00:02]} 8. Be2 {[%emt 0:00:18]} O-O {[%emt 0:00:07]} 9. O-O {[%emt 0:00:03]} Nc6 {[%emt 0:00:16]} 10. Be3 {[%emt 0:00:11]} Bg4 {[%emt 0:00:13]} 11. d5 {[%emt 0:00:58]} Bxf3 {[%emt 0:00:04]} 12. Bxf3 {[%emt 0:00:18]} Ne5 {[%emt 0:00:02]} 13. Bxb6 {[%emt 0:00:51]} Qxb6 {[%emt 0:00:13]} 14. Nd2 {[%emt 0:00:21]} Nxf3+ {[%emt 0:00:40]} 15. Nxf3 {[%emt 0:00:10]} Rac8 {[%emt 0:00:23]} 16. Qc2 {[%emt 0:00:10]} Qxb2 {[%emt 0:01:41]} 17. Qxb2 {[%emt 0:00:21]} Bxb2 {[%emt 0:00:01]} 18. Rab1 {[%emt 0:00:01]} Bf6 {[%emt 0:00:02]} 19. Rxb7 {[%emt 0:00:58]} Rxc4 {[%emt 0:00:03]} 20. Rxa7 {[%emt 0:00:02]} Rb8 {[%emt 0:00:12]} 21. Rd1 {[%emt 0:00:47]} Rbb4 {[%emt 0:00:06]} 22. a5 {[%emt 0:00:32]} Rc5 {[%emt 0:00:12]} 23. a6 {[%emt 0:00:33]} Rxd5 {[%emt 0:00:20]} 24. Rc1 {[%emt 0:00:46]} Rc5 {[%emt 0:00:02]} 25. Rd1 {[%emt 0:00:08]} Ra4 {[%emt 0:00:11]} 26. g3 {[%emt 0:01:01]} Rca5 {[%emt 0:00:02]} 27. Kg2 {[%emt 0:00:22]} Rxa6 {[%emt 0:00:02]} 28. Rb7 {[%emt 0:00:12]} Rc6 {[%emt 0:00:05]} 29. Rd2 {[%emt 0:00:33]} Kg7 {[%emt 0:00:11]} 30. Ng1 {[%emt 0:01:09]} e6 {[%emt 0:00:18]} 31. Nh3 {[%emt 0:00:19]} d5 {[%emt 0:00:09]} 32. Rd7 {[%emt 0:00:17]} Raa6 {[%emt 0:00:21]} 33. Nf4 {[%emt 0:00:31]} Bg5 {[%emt 0:00:05]} 34. Rd4 {[%emt 0:00:46]} Rc4 {[%emt 0:01:08]} 35. Ne2 {[%emt 0:01:09]} Rxd4 {[%emt 0:00:46]} 36. Nxd4 {[%emt 0:00:04]} Bf6 {[%emt 0:00:05]} 37. Nb5 {[%emt 0:00:20]} Be5 {[%emt 0:00:16]} 38. f4 {[%emt 0:00:10]} Rb6 {[%emt 0:00:06]} 39. Na7 {[%emt 0:00:29]} Bb8 {[%emt 0:01:41]} 40. Nc8 {[%emt 0:00:55]} Rc6 {[%emt 0:00:05]} 41. Ne7 {[%emt 0:00:03]} Rc2+ {[%emt 0:00:08]} 42. Kh3 {[%emt 0:00:07]} Kf8 {[%emt 0:00:07]} 43. Nxd5 {[%emt 0:00:21]} exd5 {[%emt 0:00:19]} 44. Rxd5 {[%emt 0:00:01]} Bc7 45. Rb5 {[%emt 0:00:12]} Kg7 {[%emt 0:00:20]} 46. Rb7 {[%emt 0:00:06]} h5 {[%emt 0:00:06]} 47. Rb5 {[%emt 0:00:18]} Rf2 {[%emt 0:00:25]} 48. Rb4 {[%emt 0:00:16]} Bd8 {[%emt 0:00:14]} 49. Rb8 {[%emt 0:00:41]} Bc7 {[%emt 0:00:11]} 50. Rb7 {[%emt 0:00:02]} Bxf4 {[%emt 0:00:05]} 51. gxf4 {[%emt 0:00:05]} Rf3+ {[%emt 0:00:08]} 52. Kg2 {[%emt 0:00:06]} Rxf4 {[%emt 0:00:02]} 53. Rb5 {[%emt 0:00:06]} f6 {[%emt 0:00:06]} 54. Kg3 {[%emt 0:00:10]} g5 {[%emt 0:00:02]} 55. h3 {[%emt 0:00:13]} Kg6 {[%emt 0:00:02]} 56. Ra5 {[%emt 0:00:12]} Rb4 {[%emt 0:00:03]} 57. Rc5 {[%emt 0:00:09]} Rb3+ {[%emt 0:00:02]} 58. Kg2 {[%emt 0:00:01]} g4 {[%emt 0:00:16]} 59. Rd5 {[%emt 0:00:23]} Rxh3 {[%emt 0:00:09]} 60. Rd4 {[%emt 0:00:06]} Ra3 {[%emt 0:00:02]} 61. Kh2 {[%emt 0:00:05]} Kg5 {[%emt 0:00:03]} 62. Kg2 {[%emt 0:00:04]} h4 {[%emt 0:00:02]} 63. Rb4 {[%emt 0:00:04]} Ra2+ {[%emt 0:00:01]} 64. Kf1 {[%emt 0:00:02]} h3 {[%emt 0:00:02]} 0-1

[Event "Szansa Chess Open 2022"]
[Site "Warsaw"]
[Date "2022.09.17"]
[Round "1.22"]
[White "Galczynski, maksymilian"]
[Black "Smieszek, Wojciech"]
[Result "1-0"]
[ECO "C68"]
[WhiteElo "1369"]
[BlackElo "2082"]
[Annotator "TA"]
[PlyCount "71"]
[EventDate "2022.09.17"]
[EventCountry "POL"]
[SourceTitle "playchess.com"]
[Source "ChessBase"]
[SourceQuality "1"]
[TimeControl "900+10"]

{[%evp 14,71,-10,-7,46,43,51,38,39,13,55,44,66,68,197,167,166,109,179,179,174,178,160,169,175,162,157,136,125,114,207,200,300,208,297,297,486,459,446,435,501,503,12850,12849,29978,29979,29979,29980,29980,29980,29981,29981,29982,29980,29981,29982,29982,29983,29983,29984]} 1. e4 {[%emt 0:00:04]} e5 {[%emt 0:00:02]} 2. Nf3 {[%emt 0:00:01]} Nc6 {[%emt 0:00:01]} 3. Bb5 {[%emt 0:00:03]} a6 {[%emt 0:00:01]} 4. Bxc6 {[%emt 0:00:02]} dxc6 {[%emt 0:00:02]} 5. O-O {[%emt 0:00:02]} Bg4 {[%emt 0:00:02]} 6. h3 {[%emt 0:00:02]} h5 {[%emt 0:00:01]} 7. d3 {[%emt 0:00:01]} Qf6 {[%emt 0:00:17]} 8. Be3 $1 {[%emt 0:00:02][%mdl 4] now scores much better than the old 8.Nbd2.} (8. hxg4 hxg4 9. Be3 (9. Bg5 $2 Qg6 $19) 9... Bc5 $1 $15 {[%mdl 512]}) 8... Bd6 {[%emt 0:01:37] C68: Ruy Lopez: Exchange Variation, sidelines.} ({Black should play} 8... Bxf3 $11 9. Qxf3 Qxf3 10. gxf3 Bd6) 9. Nbd2 $1 $14 {[%emt 0:00:04]} (9. hxg4 hxg4 10. Nbd2 (10. Bg5 $2 Qg6 $19) 10... gxf3 11. Qxf3 Qh4 $15) 9... Ne7 {[%emt 0:00:30]} 10. Re1 {[%emt 0:00:08]} ({Don't play} 10. hxg4 hxg4 11. g3 (11. Bg5 Qg6 $17) 11... gxf3 $11) 10... Bxf3 {[%emt 0:00:35] White is slightly better.} 11. Qxf3 {[%emt 0:00:10] [#]} Qg6 $146 {[%emt 0:00:38]} ({Predecessor:} 11... Qxf3 12. Nxf3 c5 13. Nd2 f6 14. a3 Nc6 15. c3 O-O-O 16. Kf1 Be7 17. Ke2 Nd4+ 18. Bxd4 cxd4 {1-0 (60) Alsina Leal,D (2477)-Meneses Gonzalez,K (2251) Linares 2019}) 12. Nc4 {[%emt 0:00:21]} O-O {[%emt 0:00:15]} 13. d4 {[%emt 0:00:27][%cal Bd3d4,Bd4e5][%mdl 32]} f5 {[%emt 0:02:05]} (13... exd4 $14 14. Bxd4 Rad8) 14. dxe5 $18 {[%emt 0:01:07]} fxe4 {[%emt 0:00:20] [#]} 15. Qg3 {[%emt 0:02:18]} ({Better is} 15. Qe2 $1 $18) 15... Qxg3 {[%emt 0:01:33]} (15... Qe6 $16) 16. fxg3 {[%emt 0:00:02]} Bb4 {[%emt 0:00:02]} 17. c3 {[%emt 0:00:01]} b5 {[%emt 0:00:24]} 18. cxb4 {[%emt 0:00:15]} bxc4 {[%emt 0:00:02]} 19. Bc5 $36 {[%emt 0:00:01][%csl LRe4,LRe7][%mdl 2048] White is on the roll.} Rfe8 {[%emt 0:00:17]} 20. Bxe7 {[%emt 0:00:02] White is more active.} Rxe7 {[%emt 0:00:02]} 21. Rxe4 $16 {[%emt 0:00:01][%mdl 4096] Endgame KRR-KRR} Rae8 {[%emt 0:00:43]} (21... Rb8 $16 {might work better.}) 22. Rae1 $18 {[%emt 0:00:02]} Kf7 {[%emt 0:01:14]} (22... c5 $142 23. bxc5 Kf7) 23. Kf2 {[%emt 0:01:50]} Kg6 {[%emt 0:00:04]} (23... c5 $142 24. bxc5 g5 25. Rxc4 Rxe5 26. Rxe5 Rxe5) 24. Rxc4 {[%emt 0:00:05]} Rxe5 $2 {[%emt 0:00:41]} (24... Re6 {was necessary.} 25. g4 hxg4 26. Rxg4+ Kf7) 25. Rxc6+ {[%emt 0:00:03]} Kf5 {[%emt 0:00:10]} 26. Rxe5+ {[%emt 0:00:03]} Rxe5 {[%emt 0:00:01]} 27. Rxc7 {[%emt 0:00:05] aiming for Rc5. KR-KR} g5 {[%emt 0:00:06]} (27... Ke6 $142 28. Rc6+ Kd5) 28. Rc5 {[%emt 0:00:02]} Ke4 {[%emt 0:00:11]} 29. Rxe5+ {[%emt 0:00:02] White mates.} Kxe5 {[%emt 0:00:01] KP-KP} 30. Ke3 {[%emt 0:00:02]} Kd5 {[%emt 0:00:08]} 31. b3 {[%emt 0:00:01]} Ke5 {[%emt 0:00:01]} 32. a4 {[%emt 0:00:01]} Kd5 {[%emt 0:00:01]} 33. b5 {[%emt 0:00:07]} axb5 {[%emt 0:00:04]} 34. axb5 {[%emt 0:00:01]} Kc5 {[%emt 0:00:01]} 35. Ke4 {[%emt 0:00:01]} Kxb5 {[%emt 0:00:03]} 36. Kf5 {[%emt 0:00:01] Weighted Error Value: White=0.11 (very precise) /Black=0.60} 1-0

[Event "Szansa Chess Open 2022"]
[Site "Warsaw"]
[Date "2022.09.17"]
[Round "1.24"]
[White "Leszczewicz, Karol"]
[Black "Omar, Ahmed"]
[Result "1/2-1/2"]
[ECO "B92"]
[WhiteElo "1588"]
[BlackElo "2064"]
[Annotator "TA"]
[PlyCount "61"]
[EventDate "2022.09.17"]
[EventCountry "POL"]
[SourceTitle "playchess.com"]
[Source "ChessBase"]
[SourceQuality "1"]
[TimeControl "900+10"]

{[%evp 14,61,31,14,59,58,64,54,61,74,64,66,74,77,82,76,79,33,39,27,17,35,29,25,13,0,118,123,785,773,1316,1281,1226,1208,1160,1165,2749,2249,1648,1242,1228,1228,1192,1183,1176,1160,1176,1165,1113,968]} 1. e4 {[%emt 0:00:01]} c5 {[%emt 0:00:01]} 2. Nf3 {[%emt 0:00:03]} d6 {[%emt 0:00:01]} 3. d4 {[%emt 0:00:02]} cxd4 {[%emt 0:00:04]} 4. Nxd4 {[%emt 0:00:02]} Nf6 {[%emt 0:00:02]} 5. Nc3 {[%emt 0:00:02]} a6 {[%emt 0:00:11]} 6. Be2 {[%emt 0:00:03]} Nc6 {[%emt 0:00:03]} 7. Be3 {[%emt 0:03:32]} e5 {[%emt 0:01:09]} 8. Nb3 {[%emt 0:00:04]} b5 {[%emt 0:01:05] B90: Sicilian Najdorf: Unusual White 6th moves, 6 Be3 Ng4 and 6 Be3 e5.} 9. a4 {[%emt 0:03:00]} b4 {[%emt 0:04:20]} 10. Nd5 {[%emt 0:00:01]} Nxd5 {[%emt 0:01:45] White is slightly better.} (10... Nxe4 $2 11. Bb6 Qg5 12. Nc7+ Ke7 13. Nxa8 $18) 11. Qxd5 {[%emt 0:00:59]} Bb7 {[%emt 0:01:14] [#]} 12. a5 $146 {[%emt 0:01:45] White has more active pieces. The black rooks are badly placed.} ({Predecessor:} 12. O-O Qc7 13. Qd2 h6 14. f4 a5 15. Bg4 h5 16. Bh3 Bc8 17. f5 Ba6 18. Rfd1 {½-½ (38) Koerlin,H (1882)-Tuerk,B (1613) Berlin 2016}) 12... Qd7 {[%emt 0:02:07][%cal Oc6d4] White must now prevent ...Nd4!} 13. Qd2 {[%emt 0:00:34] Prevents Nd4.} Qe6 {[%emt 0:01:49]} 14. O-O {[%emt 0:00:36]} Be7 {[%emt 0:00:34]} 15. f4 {[%emt 0:02:18]} ({White should try} 15. Bd3 $16) 15... exf4 $14 {[%emt 0:01:27]} 16. Rxf4 {[%emt 0:00:30]} O-O {[%emt 0:00:37]} 17. Raf1 {[%emt 0:00:47]} Bg5 {[%emt 0:00:02]} 18. R4f3 {[%emt 0:01:21]} Bxe3+ {[%emt 0:00:03]} 19. Rxe3 {[%emt 0:00:18]} Ne5 {[%emt 0:00:08]} (19... Rac8 $11 {keeps the balance.}) 20. Nd4 $16 {[%emt 0:00:14]} Nc4 $2 {[%emt 0:00:43][%mdl 8192] This costs Black the game.} (20... Qd7 $16) 21. Qxb4 $18 {[%emt 0:00:47] White is clearly winning.} ({Weaker is} 21. Nxe6 Nxd2 22. Rd1 fxe6 $16) 21... Nxe3 {[%emt 0:00:43]} 22. Nxe6 {[%emt 0:00:04][%mdl 64] [#] Pin} Rfb8 {[%emt 0:00:19]} 23. Qd4 {[%emt 0:00:43][%csl Ge6][%cal Rd4g7]} fxe6 {[%emt 0:00:01]} 24. Qxe3 {[%emt 0:00:02]} d5 {[%emt 0:00:06]} 25. exd5 {[%emt 0:00:22]} Bxd5 {[%emt 0:00:01]} 26. Bf3 {[%emt 0:00:05]} Re8 {[%emt 0:00:26]} 27. Bxd5 {[%emt 0:00:07]} exd5 {[%emt 0:00:02]} 28. Qf3 {[%emt 0:00:04]} Rad8 {[%emt 0:00:13]} 29. Qf7+ {[%emt 0:00:08]} Kh8 {[%emt 0:00:09]} 30. Rd1 {[%emt 0:00:03]} Rf8 {[%emt 0:00:16] [#]} 31. Rxd5 $1 {[%emt 0:00:14][%mdl 32768] Weighted Error Value: White=0.06 (flawless) /Black=0.26 (precise) . An unexpected result.} 1/2-1/2